fUST/lending_fUST_20250618
["ID","MTS","AMOUNT","RATE_DAILY","PERIOD"]
[366328955,1750191943454,-460.0,0.00021917,6]
[366328956,1750191943475,-460.0,0.00021917,6]
[366328957,1750191943497,-460.0,0.00021917,6]
[366328958,1750191943519,-460.0,0.00021917,6]
[366328959,1750191943540,-460.0,0.00021917,6]
[366328960,1750191943561,-460.0,0.00021917,6]
[366328961,1750191943582,-460.0,0.00021917,6]
[366328962,1750191943605,-460.0,0.00021917,6]
[366328963,1750191943626,-460.0,0.00021917,6]
[366328964,1750191943650,-1839.73,0.00021917,6]
[366328965,1750191943675,-460.0,0.00021917,6]
[366328966,1750191943696,-460.0,0.00021917,6]
[366328967,1750191943721,-460.0,0.00021917,6]
[366328968,1750191943743,-460.0,0.00021917,6]
[366328969,1750191943767,-487.9,0.00021917,6]
[366328970,1750191943789,-270.0,0.00021917,6]
[366328971,1750191943812,-460.0,0.00021917,6]
[366328972,1750191943839,-460.0,0.00021917,6]
[366328973,1750191943862,-201.76508711,0.00021917,6]
[366328974,1750192025099,-275.0643614,0.00020952,2]
[366328976,1750192145101,-450.8,0.00019619,2]
[366328980,1750192155085,-4549.2,0.00019619,2]
[366328981,1750192155107,-269.52602619,0.00019817,2]
[366328982,1750192155127,-4100.0,0.0002,2]
[366328983,1750192155149,-180.207732,0.00020756,2]
[366328984,1750192155169,-160.0,0.00021,2]
[366328985,1750192155188,-269.90024181,0.00021164,2]
[366328986,1750192165093,-5000.0,0.00020952,2]
[366328987,1750192165114,-230.09975819,0.00021164,2]
[366328994,1750192214249,389.18215022,0.00021164,2]
[366329007,1750192232202,-4640.97778666,0.00021523,2]
[366329008,1750192232214,-359.02221334,0.00021523,2]
[366329009,1750192232224,-160.0,0.00021523,2]
[366329010,1750192232233,-290.18568945,0.00021741,2]
[366329011,1750192232243,-161.59258033,0.00021817,2]
[366329013,1750192232252,-168.0,0.00021824,2]
[366329015,1750192232261,-212.5941828,0.000219,6]
[366329017,1750192232270,-300.0,0.00021916,2]
[366329019,1750192232279,-300.0,0.00021916,2]
[366329020,1750192232289,-258.23491289,0.00021917,6]
[366329021,1750192232298,-460.0,0.00021917,6]
[366329022,1750192232307,-460.0,0.00021917,6]
[366329023,1750192232317,-430.0,0.00021917,6]
[366329024,1750192232326,-460.0,0.00021917,6]
[366329025,1750192232336,-460.0,0.00021917,6]
[366329026,1750192232345,-460.0,0.00021917,6]
[366329027,1750192232354,-460.0,0.00021917,6]
[366329028,1750192232364,-460.0,0.00021917,6]
[366329029,1750192232373,-460.0,0.00021917,6]
[366329030,1750192232382,-411.71471395,0.00021917,6]
[366329031,1750192232391,-460.0,0.00021917,6]
[366329032,1750192232400,-460.0,0.00021917,6]
[366329033,1750192232409,-460.0,0.00021917,6]
[366329034,1750192232419,-460.0,0.00021917,6]
[366329035,1750192232428,-460.0,0.00021917,6]
[366329037,1750192232438,-385.53277726,0.00021917,6]
[366329038,1750192232448,-393.12398569,0.00021917,6]
[366329039,1750192232458,-460.0,0.00021917,6]
[366329040,1750192232467,-460.0,0.00021917,6]
[366329041,1750192232476,-500.0,0.00021917,6]
[366329042,1750192232486,-500.0,0.00021917,6]
[366329043,1750192232495,-500.0,0.00021917,6]
[366329044,1750192232505,-500.0,0.00021917,6]
[366329045,1750192232514,-460.0,0.00021917,6]
[366329046,1750192232523,-460.0,0.00021917,6]
[366329047,1750192232532,-376.91549475,0.00021917,6]
[366329048,1750192232543,-460.0,0.00021917,6]
[366329049,1750192232552,-460.0,0.00021917,6]
[366329050,1750192232561,-460.0,0.00021917,6]
[366329051,1750192232571,-500.0,0.00021917,6]
[366329052,1750192232582,-658.96,0.00021917,6]
[366329053,1750192232592,-460.0,0.00021917,6]
[366329054,1750192232604,-460.0,0.00021917,6]
[366329055,1750192232614,-21.59972009,0.00021917,6]
[366329056,1750192232633,-438.40027991,0.00021917,6]
[366329057,1750192232642,-460.0,0.00021917,6]
[366329058,1750192232651,-460.0,0.00021917,6]
[366329059,1750192232661,-460.0,0.00021917,6]
[366329060,1750192232670,-874.44,0.00021917,6]
[366329061,1750192232679,-648.72,0.00021917,6]
[366329062,1750192232688,-533.36,0.00021917,6]
[366329063,1750192232698,-444.2386318,0.00021917,6]
[366329064,1750192232719,-15.7613682,0.00021917,6]
[366329065,1750192232731,-400.0,0.00021917,6]
[366329066,1750192232741,-460.0,0.00021917,6]
[366329067,1750192232750,-460.0,0.00021917,6]
[366329068,1750192232759,-460.0,0.00021917,6]
[366329069,1750192232770,-425.6074049,0.00021917,6]
[366329103,1750192238091,-5000.0,0.00021698,2]
[366329105,1750192238101,-34.3925951,0.00021917,6]
[366329107,1750192238110,-460.0,0.00021917,6]
[366329109,1750192238120,-460.0,0.00021917,6]
[366329111,1750192238130,-460.0,0.00021917,6]
[366329113,1750192238140,-360.0,0.00021917,6]
[366329115,1750192238150,-460.0,0.00021917,6]
[366329117,1750192238159,-460.0,0.00021917,6]
[366329120,1750192238170,-460.0,0.00021917,6]
[366329122,1750192238180,-460.0,0.00021917,6]
[366329125,1750192238189,-270.0427032,0.00021917,6]
[366329127,1750192238198,-460.0,0.00021917,6]
[366329130,1750192238207,-460.0,0.00021917,6]
[366329133,1750192238216,-390.0,0.00021917,6]
[366329134,1750192238226,-460.0,0.00021917,6]
[366329137,1750192238235,-460.0,0.00021917,6]
[366329140,1750192238244,-460.0,0.00021917,6]
[366329143,1750192238254,-460.0,0.00021917,6]
[366329145,1750192238263,-360.0,0.00021917,6]
[366329148,1750192238273,-460.0,0.00021917,6]
[366329151,1750192238282,-460.0,0.00021917,6]
[366329153,1750192238292,-460.0,0.00021917,6]
[366329156,1750192238301,-460.0,0.00021917,6]
[366329159,1750192238310,-460.0,0.00021917,6]
[366329161,1750192238319,-460.0,0.00021917,6]
[366329164,1750192238329,-460.0,0.00021917,6]
[366329167,1750192238338,-460.0,0.00021917,6]
[366329169,1750192238348,-460.0,0.00021917,6]
[366329171,1750192238358,-460.0,0.00021917,6]
[366329174,1750192238367,-460.0,0.00021917,6]
[366329176,1750192238376,-460.0,0.00021917,6]
[366329178,1750192238386,-460.0,0.00021917,6]
[366329180,1750192238396,-460.0,0.00021917,6]
[366329182,1750192238405,-460.0,0.00021917,6]
[366329184,1750192238416,-460.0,0.00021917,6]
[366329185,1750192238425,-400.0,0.00021917,6]
[366329187,1750192238435,-599.25474068,0.00021917,6]
[366329190,1750192238444,-460.0,0.00021917,6]
[366329192,1750192238454,-460.0,0.00021917,6]
[366329194,1750192238464,-460.0,0.00021917,6]
[366329195,1750192238474,-321.78,0.00021917,6]
[366329197,1750192238483,-460.0,0.00021917,6]
[366329199,1750192238492,-460.0,0.00021917,6]
[366329201,1750192238502,-460.0,0.00021917,6]
[366329203,1750192238511,-460.0,0.00021917,6]
[366329205,1750192238521,-460.0,0.00021917,6]
[366329207,1750192238530,-460.0,0.00021917,6]
[366329209,1750192238539,-460.0,0.00021917,6]
[366329211,1750192238549,-460.0,0.00021917,6]
[366329213,1750192238558,-460.0,0.00021917,6]
[366329215,1750192238568,-2043.48,0.00021917,6]
[366329217,1750192238578,-460.0,0.00021917,6]
[366329219,1750192238588,-460.0,0.00021917,6]
[366329221,1750192238598,-460.0,0.00021917,6]
[366329223,1750192238607,-420.0,0.00021917,6]
[366329225,1750192238617,-460.0,0.00021917,6]
[366329227,1750192238626,-460.0,0.00021917,6]
[366329229,1750192238636,-692.32,0.00021917,6]
[366329231,1750192238645,-460.0,0.00021917,2]
[366329233,1750192238655,-460.0,0.00021917,6]
[366329235,1750192238664,-382.59,0.0002199,10]
[366329237,1750192238673,-255.95211454,0.00021999,2]
[366329239,1750192238683,-500.0,0.00021999,2]
[366329241,1750192238692,-500.0,0.00021999,2]
[366329243,1750192238701,-500.0,0.00021999,2]
[366329245,1750192238710,-613.47903257,0.00021999,2]
[366329246,1750192238720,-395.20413537,0.00022,2]
[366329248,1750192238734,-96066.8583946,0.00022,2]
[366329250,1750192238743,-500.0,0.00022026,6]
[366329252,1750192238753,-500.0,0.00022026,6]
[366329254,1750192238763,-460.0,0.00022027,6]
[366329256,1750192238772,-460.0,0.00022027,6]
[366329258,1750192238782,-460.0,0.00022027,6]
[366329260,1750192238791,-460.0,0.00022027,6]
[366329262,1750192238801,-460.0,0.00022027,6]
[366329264,1750192238811,-460.0,0.00022027,6]
[366329265,1750192238821,-227.90976945,0.00022027,6]
[366329267,1750192238830,-460.0,0.00022027,6]
[366329269,1750192238840,-460.0,0.00022027,6]
[366329271,1750192238850,-360.0,0.00022027,6]
[366329273,1750192238860,-460.0,0.00022027,6]
[366329275,1750192238870,-460.0,0.00022027,6]
[366329277,1750192238879,-460.0,0.00022027,6]
[366329279,1750192238889,-460.0,0.00022027,6]
[366329281,1750192238898,-460.0,0.00022027,6]
[366329283,1750192238908,-460.0,0.00022027,6]
[366329285,1750192238917,-460.0,0.00022027,6]
[366329287,1750192238927,-460.0,0.00022027,6]
[366329289,1750192238938,-370.0,0.00022027,6]
[366329291,1750192238947,-280.0,0.00022027,6]
[366329293,1750192238956,-460.0,0.00022027,6]
[366329295,1750192238966,-460.0,0.00022027,6]
[366329297,1750192238976,-460.0,0.00022027,6]
[366329299,1750192238985,-333.61321805,0.00022027,6]
[366329301,1750192238995,-462.39505541,0.00022027,6]
[366329302,1750192239005,-460.0,0.00022027,6]
[366329304,1750192239015,-460.0,0.00022027,6]
[366329306,1750192239024,-460.0,0.00022027,6]
[366329308,1750192239034,-658.96,0.00022027,6]
[366329310,1750192239043,-460.0,0.00022027,6]
[366329312,1750192239053,-196.01715235,0.00022027,6]
[366329314,1750192239062,-460.0,0.00022027,6]
[366329316,1750192239072,-460.0,0.00022027,6]
[366329318,1750192239082,-158.4,0.00022027,6]
[366329320,1750192239092,-460.0,0.00022027,6]
[366329322,1750192239101,-874.44,0.00022027,6]
[366329324,1750192239112,-648.72,0.00022027,6]
[366329326,1750192239121,-460.0,0.00022027,6]
[366329327,1750192239131,-460.0,0.00022027,6]
[366329329,1750192239140,-460.0,0.00022027,6]
[366329331,1750192239151,-460.0,0.00022027,6]
[366329333,1750192239160,-460.0,0.00022027,6]
[366329335,1750192239170,-460.0,0.00022027,6]
[366329337,1750192239179,-460.0,0.00022027,6]
[366329339,1750192239190,-400.0,0.00022027,6]
[366329341,1750192239200,-370.06,0.00022027,6]
[366329343,1750192239209,-460.0,0.00022027,6]
[366329345,1750192239219,-460.0,0.00022027,6]
[366329347,1750192239228,-460.0,0.00022027,6]
[366329348,1750192239238,-460.0,0.00022027,6]
[366329350,1750192239247,-460.0,0.00022027,6]
[366329352,1750192239256,-570.0,0.00022027,6]
[366329354,1750192239265,-460.0,0.00022027,6]
[366329356,1750192239275,-460.0,0.00022027,6]
[366329358,1750192239284,-460.0,0.00022027,6]
[366329360,1750192239293,-460.0,0.00022027,6]
[366329362,1750192239303,-460.0,0.00022027,6]
[366329364,1750192239312,-460.0,0.00022027,6]
[366329366,1750192239321,-460.0,0.00022027,6]
[366329368,1750192239330,-460.0,0.00022027,6]
[366329370,1750192239339,-460.0,0.00022027,6]
[366329371,1750192239348,-455.83559669,0.00022027,6]
[366329373,1750192239357,-460.0,0.00022027,6]
[366329375,1750192239366,-460.0,0.00022027,6]
[366329377,1750192239375,-460.0,0.00022027,6]
[366329379,1750192239385,-460.0,0.00022027,6]
[366329381,1750192239394,-460.0,0.00022027,6]
[366329383,1750192239403,-460.0,0.00022027,6]
[366329385,1750192239412,-460.0,0.00022027,6]
[366329387,1750192239422,-460.0,0.00022027,6]
[366329389,1750192239431,-460.0,0.00022027,6]
[366329390,1750192239441,-460.0,0.00022027,6]
[366329392,1750192239450,-460.0,0.00022027,6]
[366329394,1750192239460,-460.0,0.00022027,6]
[366329396,1750192239470,-2043.48,0.00022027,6]
[366329398,1750192239479,-460.0,0.00022027,6]
[366329400,1750192239488,-460.0,0.00022027,6]
[366329402,1750192239498,-460.0,0.00022027,6]
[366329404,1750192239507,-460.0,0.00022027,6]
[366329406,1750192239517,-692.32,0.00022027,6]
[366329408,1750192239525,-168.0,0.00022035,2]
[366329410,1750192239533,-212.59418256,0.00022038,6]
[366329412,1750192239541,-1253.40961406,0.00022051,2]
[366329414,1750192239548,-500.0,0.00022135,6]
[366329415,1750192239556,-500.0,0.00022135,6]
[366329417,1750192239563,-460.0,0.00022136,6]
[366329419,1750192239574,-460.0,0.00022136,6]
[366329421,1750192239582,-460.0,0.00022136,6]
[366329423,1750192239591,-460.0,0.00022136,6]
[366329425,1750192239599,-235.31598986,0.00022136,6]
[366329427,1750192239607,-460.0,0.00022136,6]
[366329429,1750192239617,-460.0,0.00022136,6]
[366329431,1750192239626,-460.0,0.00022136,6]
[366329432,1750192239633,-460.0,0.00022136,6]
[366329434,1750192239640,-430.0,0.00022136,6]
[366329436,1750192239648,-253.54,0.00022136,6]
[366329438,1750192239657,-460.0,0.00022136,6]
[366329440,1750192239666,-508.09194928,0.00022136,6]
[366329442,1750192239675,-460.0,0.00022136,6]
[366329444,1750192239682,-558.85178796,0.00022136,6]
[366329446,1750192239691,-460.0,0.00022136,6]
[366329448,1750192239700,-460.0,0.00022136,6]
[366329450,1750192239709,-460.0,0.00022136,6]
[366329452,1750192239728,-460.0,0.00022136,6]
[366329453,1750192239739,-460.0,0.00022136,6]
[366329455,1750192239748,-658.96,0.00022136,6]
[366329456,1750192239758,-460.0,0.00022136,6]
[366329457,1750192239770,-460.0,0.00022136,6]
[366329458,1750192239779,-460.0,0.00022136,6]
[366329459,1750192239790,-460.0,0.00022136,6]
[366329460,1750192239801,-874.44,0.00022136,6]
[366329461,1750192239811,-648.72,0.00022136,6]
[366329462,1750192239820,-460.0,0.00022136,6]
[366329464,1750192239830,-460.0,0.00022136,6]
[366329465,1750192239839,-460.0,0.00022136,6]
[366329466,1750192239849,-460.0,0.00022136,6]
[366329467,1750192239859,-460.0,0.00022136,6]
[366329468,1750192239869,-460.0,0.00022136,6]
[366329469,1750192239878,-460.0,0.00022136,6]
[366329470,1750192239888,-460.0,0.00022136,6]
[366329471,1750192239898,-460.0,0.00022136,6]
[366329472,1750192239908,-460.0,0.00022136,6]
[366329473,1750192239918,-460.0,0.00022136,6]
[366329474,1750192239927,-460.0,0.00022136,6]
[366329475,1750192239937,-460.0,0.00022136,6]
[366329476,1750192239946,-460.0,0.00022136,6]
[366329477,1750192239957,-460.0,0.00022136,6]
[366329478,1750192239966,-460.0,0.00022136,6]
[366329479,1750192239975,-460.0,0.00022136,6]
[366329480,1750192239986,-460.0,0.00022136,6]
[366329481,1750192239996,-537.03,0.00022136,6]
[366329482,1750192240006,-460.0,0.00022136,6]
[366329483,1750192240016,-460.0,0.00022136,6]
[366329484,1750192240026,-460.0,0.00022136,6]
[366329485,1750192240035,-460.0,0.00022136,6]
[366329486,1750192240045,-460.0,0.00022136,6]
[366329487,1750192240055,-460.0,0.00022136,6]
[366329488,1750192240065,-460.0,0.00022136,6]
[366329489,1750192240075,-414.31475741,0.00022136,6]
[366329490,1750192240085,-460.0,0.00022136,6]
[366329491,1750192240095,-400.0,0.00022136,6]
[366329492,1750192240105,-460.0,0.00022136,6]
[366329493,1750192240115,-460.0,0.00022136,6]
[366329494,1750192240125,-460.0,0.00022136,6]
[366329495,1750192240136,-2043.48,0.00022136,6]
[366329496,1750192240146,-460.0,0.00022136,6]
[366329497,1750192240156,-460.0,0.00022136,6]
[366329498,1750192240166,-460.0,0.00022136,6]
[366329499,1750192240176,-310.0,0.00022136,6]
[366329500,1750192240186,-692.32,0.00022136,6]
[366329501,1750192240196,-212.59418256,0.00022176,6]
[366329502,1750192240206,-2615.45,0.000222,7]
[366329503,1750192240216,-500.0,0.00022245,6]
[366329504,1750192240226,-440.0,0.00022246,6]
[366329505,1750192240235,-445.45331253,0.00022246,6]
[366329506,1750192240245,-460.0,0.00022246,6]
[366329507,1750192240254,-460.0,0.00022246,6]
[366329508,1750192240263,-460.0,0.00022246,6]
[366329509,1750192240273,-460.0,0.00022246,6]
[366329510,1750192240283,-460.0,0.00022246,6]
[366329511,1750192240292,-460.0,0.00022246,6]
[366329512,1750192240302,-460.0,0.00022246,6]
[366329513,1750192240312,-460.0,0.00022246,6]
[366329514,1750192240321,-460.0,0.00022246,6]
[366329515,1750192240330,-460.0,0.00022246,6]
[366329516,1750192240343,-460.0,0.00022246,6]
[366329519,1750192240520,-460.0,0.00022246,6]
[366329520,1750192240529,-460.0,0.00022246,6]
[366329521,1750192240539,-658.96,0.00022246,6]
[366329522,1750192240548,-494.89813927,0.00022246,6]
[366329523,1750192240557,-460.0,0.00022246,6]
[366329524,1750192240567,-460.0,0.00022246,6]
[366329525,1750192240576,-460.0,0.00022246,6]
[366329526,1750192240586,-874.44,0.00022246,6]
[366329527,1750192240595,-648.72,0.00022246,6]
[366329528,1750192240605,-460.0,0.00022246,6]
[366329529,1750192240615,-460.0,0.00022246,6]
[366329530,1750192240624,-460.0,0.00022246,6]
[366329531,1750192240634,-460.0,0.00022246,6]
[366329532,1750192240643,-460.0,0.00022246,6]
[366329533,1750192240652,-460.0,0.00022246,6]
[366329534,1750192240661,-460.0,0.00022246,6]
[366329535,1750192240672,-460.0,0.00022246,6]
[366329536,1750192240681,-460.0,0.00022246,6]
[366329537,1750192240691,-460.0,0.00022246,6]
[366329538,1750192240700,-460.0,0.00022246,6]
[366329539,1750192240711,-460.0,0.00022246,6]
[366329540,1750192240720,-460.0,0.00022246,6]
[366329541,1750192240733,-460.0,0.00022246,6]
[366329542,1750192240744,-460.0,0.00022246,6]
[366329543,1750192240754,-460.0,0.00022246,6]
[366329544,1750192240763,-460.0,0.00022246,6]
[366329545,1750192240774,-460.0,0.00022246,6]
[366329546,1750192240784,-554.02315985,0.00022246,6]
[366329547,1750192240794,-460.0,0.00022246,6]
[366329548,1750192240805,-460.0,0.00022246,6]
[366329549,1750192240815,-460.0,0.00022246,6]
[366329550,1750192240825,-460.0,0.00022246,6]
[366329551,1750192240834,-460.0,0.00022246,6]
[366329552,1750192240843,-260.49249775,0.00022246,6]
[366329553,1750192240888,-199.50750225,0.00022246,6]
[366329554,1750192240897,-1982.19076568,0.00022246,6]
[366329555,1750192240910,-61.28923432,0.00022246,6]
[366329556,1750192240920,-460.0,0.00022246,6]
[366329557,1750192240929,-460.0,0.00022246,6]
[366329558,1750192240939,-460.0,0.00022246,6]
[366329560,1750192240949,-111.81318787,0.00022246,6]
[366329561,1750192240961,-580.50681213,0.00022246,6]
[366329563,1750192240971,-204.67711649,0.00022249,2]
[366329564,1750192240981,-168.0,0.00022274,2]
[366329566,1750192240991,-158.29902328,0.00022314,7]
[366329568,1750192241004,-54.29515928,0.00022314,7]
[366329570,1750192241015,-500.0,0.00022355,2]
[366329572,1750192241024,-500.0,0.00022355,6]
[366329574,1750192241034,-160.0,0.00022355,2]
[366329576,1750192241043,-460.0,0.00022356,6]
[366329578,1750192241053,-593.24690289,0.00022356,6]
[366329580,1750192241062,-460.0,0.00022356,6]
[366329582,1750192241072,-460.0,0.00022356,6]
[366329584,1750192241081,-286.57576451,0.00022356,6]
[366329586,1750192241093,-173.42423549,0.00022356,6]
[366329588,1750192241102,-460.0,0.00022356,6]
[366329590,1750192241112,-460.0,0.00022356,6]
[366329592,1750192241122,-460.0,0.00022356,6]
[366329595,1750192241132,-460.0,0.00022356,6]
[366329596,1750192241141,-460.0,0.00022356,6]
[366329599,1750192241151,-460.0,0.00022356,6]
[366329600,1750192241160,-460.0,0.00022356,6]
[366329602,1750192241170,-460.0,0.00022356,6]
[366329604,1750192241180,-658.96,0.00022356,6]
[366329606,1750192241189,-460.0,0.00022356,6]
[366329608,1750192241198,-460.0,0.00022356,6]
[366329610,1750192241207,-460.0,0.00022356,6]
[366329612,1750192241217,-874.44,0.00022356,6]
[366329614,1750192241227,-648.72,0.00022356,6]
[366329616,1750192241236,-460.0,0.00022356,6]
[366329618,1750192241246,-460.0,0.00022356,6]
[366329620,1750192241255,-460.0,0.00022356,6]
[366329622,1750192241264,-460.0,0.00022356,6]
[366329624,1750192241273,-460.0,0.00022356,6]
[366329626,1750192241288,-308.18116845,0.00022356,6]
[366329628,1750192241304,-460.0,0.00022356,6]
[366329630,1750192241314,-460.0,0.00022356,6]
[366329632,1750192241323,-460.0,0.00022356,6]
[366329634,1750192241333,-460.0,0.00022356,6]
[366329636,1750192241342,-460.0,0.00022356,6]
[366329638,1750192241351,-460.0,0.00022356,6]
[366329640,1750192241361,-460.0,0.00022356,6]
[366329642,1750192241371,-460.0,0.00022356,6]
[366329644,1750192241380,-460.0,0.00022356,6]
[366329646,1750192241390,-460.0,0.00022356,6]
[366329648,1750192241399,-460.0,0.00022356,6]
[366329650,1750192241408,-300.25,0.00022356,6]
[366329652,1750192241417,-2043.48,0.00022356,6]
[366329654,1750192241427,-460.0,0.00022356,6]
[366329656,1750192241436,-460.0,0.00022356,6]
[366329658,1750192241446,-460.0,0.00022356,6]
[366329660,1750192241455,-692.32,0.00022356,6]
[366329662,1750192241464,-168.0,0.00022362,2]
[366329664,1750192241474,-378.88449466,0.00022396,2]
[366329666,1750192241483,-168.0,0.00022405,2]
[366329668,1750192241492,-212.59418256,0.00022452,7]
[366329670,1750192241502,-248.5,0.00022464,6]
[366329672,1750192241512,-558.25,0.00022465,6]
[366329674,1750192241521,-460.0,0.00022465,6]
[366329676,1750192241531,-525.32,0.00022465,6]
[366329677,1750192241540,-571.29,0.00022465,6]
[366329679,1750192241550,-460.0,0.00022465,6]
[366329681,1750192241560,-460.0,0.00022465,6]
[366329684,1750192241569,-460.0,0.00022465,6]
[366329686,1750192241579,-658.96,0.00022465,6]
[366329688,1750192241589,-460.0,0.00022465,6]
[366329690,1750192241598,-460.0,0.00022465,6]
[366329692,1750192241608,-874.44,0.00022465,6]
[366329694,1750192241618,-648.72,0.00022465,6]
[366329696,1750192241627,-491.51,0.00022465,6]
[366329698,1750192241636,-460.0,0.00022465,6]
[366329700,1750192241646,-460.0,0.00022465,6]
[366329701,1750192241655,-460.0,0.00022465,6]
[366329703,1750192241664,-460.0,0.00022465,6]
[366329705,1750192241674,-460.0,0.00022465,6]
[366329707,1750192241683,-460.0,0.00022465,6]
[366329710,1750192241693,-460.0,0.00022465,6]
[366329711,1750192241703,-460.0,0.00022465,6]
[366329714,1750192241712,-460.0,0.00022465,6]
[366329716,1750192241722,-460.0,0.00022465,6]
[366329718,1750192241735,-460.0,0.00022465,6]
[366329719,1750192241744,-460.0,0.00022465,6]
[366329721,1750192241753,-2043.48,0.00022465,6]
[366329723,1750192241762,-460.0,0.00022465,6]
[366329725,1750192241773,-692.32,0.00022465,6]
[366329727,1750192241783,-672.03,0.000225,7]
[366329730,1750192241792,-27219.83,0.000225,7]
[366329732,1750192241802,-168.0,0.00022553,2]
[366329733,1750192241812,-460.0,0.00022575,6]
[366329736,1750192241822,-274.84,0.00022575,6]
[366329738,1750192241832,-460.0,0.00022575,6]
[366329740,1750192241841,-460.0,0.00022575,6]
[366329742,1750192241852,-658.96,0.00022575,6]
[366329744,1750192241861,-460.0,0.00022575,6]
[366329746,1750192241871,-460.0,0.00022575,6]
[366329748,1750192241881,-874.44,0.00022575,6]
[366329750,1750192241890,-648.72,0.00022575,6]
[366329752,1750192241900,-523.92,0.00022575,6]
[366329754,1750192241909,-460.0,0.00022575,6]
[366329756,1750192241919,-298.54710223,0.00022575,6]
[366329757,1750192241928,-212.7,0.00022575,6]
[366329759,1750192241938,-460.0,0.00022575,6]
[366329761,1750192241947,-460.0,0.00022575,6]
[366329763,1750192241957,-460.0,0.00022575,6]
[366329765,1750192241966,-460.0,0.00022575,6]
[366329767,1750192241976,-460.0,0.00022575,6]
[366329769,1750192241986,-2043.48,0.00022575,6]
[366329771,1750192241996,-692.32,0.00022575,6]
[366329773,1750192242006,-212.59418256,0.0002259,7]
[366329776,1750192242017,-9907.18905337,0.00022648,7]
[366329778,1750192242027,-9907.18905337,0.00022648,7]
[366329780,1750192242037,-460.0,0.00022684,6]
[366329782,1750192242047,-460.0,0.00022684,6]
[366329783,1750192242057,-460.0,0.00022684,6]
[366329786,1750192242066,-658.96,0.00022684,6]
[366329787,1750192242075,-460.0,0.00022684,6]
[366329789,1750192242084,-460.0,0.00022684,6]
[366329791,1750192242094,-874.44,0.00022684,6]
[366329793,1750192242103,-648.72,0.00022684,6]
[366329795,1750192242113,-460.0,0.00022684,6]
[366329797,1750192242123,-460.0,0.00022684,6]
[366329799,1750192242133,-460.0,0.00022684,6]
[366329801,1750192242142,-460.0,0.00022684,6]
[366329803,1750192242152,-460.0,0.00022684,6]
[366329805,1750192242161,-460.0,0.00022684,6]
[366329807,1750192242171,-2043.48,0.00022684,6]
[366329809,1750192242181,-692.32,0.00022684,6]
[366329811,1750192242190,-212.59418256,0.00022728,7]
[366329813,1750192242199,-460.0,0.00022794,6]
[366329815,1750192242209,-460.0,0.00022794,6]
[366329817,1750192242218,-460.0,0.00022794,6]
[366329819,1750192242228,-658.96,0.00022794,6]
[366329821,1750192242237,-460.0,0.00022794,6]
[366329823,1750192242247,-460.0,0.00022794,6]
[366329825,1750192242257,-874.44,0.00022794,6]
[366329827,1750192242266,-648.72,0.00022794,6]